bitfinex-derivatives/quotes_ETHF0:USTF0_20251126
["timestamp","ask_amount","ask_price","bid_price","bid_amount"]
[1764121295256,0.00277511,2976.5,2976.0,0.2676]
[1764121295257,0.48077511,2976.5,2976.0,0.2676]
[1764121295456,0.48077511,2976.5,2976.4,0.4514]
[1764121295652,0.28737511,2976.5,2976.0,0.4514]
[1764121295857,0.48077511,2976.5,2976.4,0.4514]
[1764121297165,0.76537511,2976.5,2975.6,0.00788771]
[1764121297366,0.89986174,2976.3,2975.6,0.00788771]
[1764121298257,0.89986174,2976.2,2975.6,0.00788771]
[1764121298458,0.89986174,2976.4,2976.3,0.4514]
[1764121298660,0.89986174,2976.4,2976.0,0.2676]
[1764121298661,0.00277511,2976.5,2976.4,0.4514]
[1764121298864,1.20246617,2977.0,2976.9,0.4514]
[1764121299258,1.20246617,2977.1,2977.0,0.719]
[1764121299559,4.23196035,2977.9,2977.0,0.719]
[1764121299560,1.8016127,2977.7,2977.6,0.4514]
[1764121299761,1.80409582,2977.7,2977.6,0.4514]
[1764121299964,0.478,2977.5,2977.4,0.00504278]
[1764121300160,1.80409582,2977.7,2977.6,0.4514]
[1764121300367,0.48048312,2977.7,2977.6,0.4514]
[1764121300866,0.478,2977.5,2977.4,0.00504278]
[1764121301364,0.00248312,2977.7,2977.4,0.45644278]
[1764121302268,0.4704,2977.5,2977.4,0.45644278]
[1764121302764,0.00248312,2977.7,2977.4,0.45644278]
[1764121303565,0.4704,2977.5,2977.4,0.45644278]
[1764121303762,0.00248312,2977.7,2977.4,0.45644278]
[1764121303958,0.4704,2977.5,2977.4,0.00504278]
[1764121304565,0.4704,2977.5,2977.4,0.46904278]
[1764121305165,0.00248312,2977.7,2977.4,0.46904278]
[1764121307071,0.4704,2977.5,2977.4,0.46904278]
[1764121307368,0.7491,2977.5,2977.4,0.00504278]
[1764121307569,6.7491,2977.5,2976.5,0.2676]
[1764121307770,1.8016127,2977.4,2976.5,0.2676]
[1764121308167,2.0803127,2977.5,2976.5,0.2676]
[1764121308368,1.9696227,2977.4,2976.5,0.2676]
[1764121308577,0.00504278,2977.2,2976.7,0.00504278]
[1764121308768,0.4704,2976.8,2976.7,0.00504278]
[1764121309266,0.4704,2976.8,2976.7,0.46904278]
[1764121309463,0.2787,2977.0,2976.7,0.46904278]
[1764121309865,0.4704,2976.8,2976.7,0.46904278]
[1764121310076,0.4704,2976.8,2976.7,0.00504278]
[1764121312178,0.4704,2976.1,2975.6,0.00284493]
[1764121312368,0.2787,2976.0,2975.6,0.00284493]
[1764121313175,0.16807,2976.3,2975.9,0.464]
[1764121313382,0.4704,2976.3,2976.2,0.464]
[1764121314378,0.4704,2976.1,2975.7,1.36836436]
[1764121314581,0.2787,2976.5,2976.0,0.7518]
[1764121316087,0.4704,2976.7,2976.6,0.464]
[1764121316274,0.2787,2977.0,2976.6,0.464]
[1764121317377,0.16801,2977.3,2976.6,0.464]
[1764121318983,1.80409582,2977.7,2977.1,0.464]
[1764121319185,0.00248312,2977.7,2977.1,0.464]
[1764121320482,2.0803127,2978.5,2977.6,0.464]
[1764121320682,0.2787,2978.5,2977.6,0.464]
[1764121321374,0.2787,2978.5,2977.9,0.4465]
[1764121321575,0.771,2978.0,2977.9,0.00926414]
[1764121322179,0.4877,2978.0,2977.9,0.00926414]
[1764121322373,0.45604546,2978.5,2977.9,0.45576414]
[1764121322576,1.8016127,2979.2,2979.1,0.4465]
[1764121322881,0.4877,2979.4,2979.0,0.0669]
[1764121323075,0.4877,2979.4,2978.5,2.84047253]
[1764121323383,0.2833,2980.0,2979.0,0.2851]
[1764121323776,0.0042467,2980.0,2979.1,1.36836436]
[1764121323975,0.0042467,2980.0,2979.9,0.4465]
[1764121325382,0.2833,2981.5,2980.0,0.2851]
[1764121325585,0.2833,2981.5,2980.1,1.36836436]
[1764121326480,0.28753955,2981.5,2980.1,1.37238753]
[1764121327086,0.28753955,2981.5,2980.1,0.00402317]
[1764121327780,0.16778,2981.4,2980.1,0.00402317]
[1764121327986,0.4877,2980.2,2980.1,0.00402317]
[1764121328591,0.4511,2981.0,2980.1,0.45052317]
[1764121329494,0.4511,2981.0,2980.1,0.00402317]
[1764121330782,0.4877,2980.2,2980.1,0.00402317]
[1764121332283,0.452,2980.2,2980.1,0.00402317]
[1764121332491,0.452,2980.2,2979.2,1.37339834]
[1764121332492,0.61985,2980.2,2979.2,0.00503398]
[1764121333391,0.61985,2980.2,2979.2,0.00883854]
[1764121333586,0.452,2979.3,2979.2,0.00883854]
[1764121333792,0.45528167,2979.3,2979.2,0.00883854]
[1764121334484,0.00328167,2979.3,2979.2,0.00883854]
[1764121334794,0.45528167,2979.3,2979.2,0.00883854]
[1764121335490,0.00328167,2979.3,2979.2,0.00883854]
[1764121336688,0.00328167,2979.3,2979.2,0.47993854]
[1764121337692,0.2833,2980.0,2979.2,0.47993854]
[1764121338089,1.19124367,2980.9,2980.1,0.4711]
[1764121338389,0.2833,2980.5,2980.1,0.4711]
[1764121338602,0.452,2980.2,2979.5,0.2737]
[1764121339095,0.28572785,2980.5,2979.5,0.2737]
[1764121339288,0.00242785,2980.5,2979.5,0.2737]
[1764121339893,0.00242785,2980.5,2980.4,0.4711]
[1764121340785,0.45442785,2980.5,2980.0,0.2737]
[1764121340986,2.40876828,2982.4,2982.3,0.3065]
[1764121341188,3.29426035,2983.5,2982.1,1.37339834]
[1764121341385,3.01096035,2983.8,2983.3,1.36836436]
[1764121341592,0.2833,2985.0,2983.3,1.36836436]
[1764121341989,0.2833,2985.0,2983.3,1.37181362]
[1764121341990,0.28720598,2984.5,2983.3,1.37181362]
[1764121342292,0.00390598,2984.5,2983.8,1.36836436]
[1764121342500,0.2833,2985.5,2984.3,1.36836436]
[1764121342697,0.2833,2985.5,2983.6,0.00503398]
[1764121342890,0.2833,2985.5,2983.7,1.36836436]
[1764121343091,0.2833,2985.5,2983.6,0.00503398]
[1764121343092,0.3373,2985.5,2983.6,0.00503398]
[1764121343288,0.16757,2985.3,2983.6,0.00503398]
[1764121343487,0.17083025,2985.3,2983.6,0.00503398]
[1764121343689,0.2833,2984.1,2983.6,0.00503398]
[1764121348289,0.452,2983.7,2983.3,0.00344926]
[1764121348490,0.452,2983.4,2982.3,1.20245912]
[1764121348695,0.2833,2982.6,2981.6,1.20245912]
[1764121349088,0.2833,2983.2,2982.4,1.20245912]
[1764121349290,0.2833,2982.6,2982.5,0.00502529]
[1764121349490,0.28712445,2982.6,2982.5,0.00797619]
[1764121349690,0.73912445,2982.6,2982.5,0.00797619]
[1764121351391,0.73912445,2982.6,2981.6,1.20245912]
[1764121351901,0.2833,2982.0,2981.6,1.20245912]
[1764121352104,0.2833,2982.0,2981.2,1.20245912]
[1764121352493,0.7353,2981.4,2981.3,0.00502529]
[1764121353306,0.2833,2980.8,2980.5,1.20245912]
[1764121353701,0.2833,2981.4,2980.5,1.20245912]
[1764121354102,0.2833,2982.0,2981.3,1.20245912]
[1764121354303,0.00502529,2981.9,2981.4,0.00502529]
[1764121354503,0.00502529,2981.9,2981.7,1.20245912]
[1764121355013,0.28712445,2982.6,2981.7,1.20245912]
[1764121355905,0.2833,2982.0,2981.4,0.00502529]
[1764121356109,0.28832529,2982.0,2981.4,0.00502529]
[1764121357314,0.28832529,2982.0,2981.3,0.00251069]
[1764121357514,0.28832529,2982.0,2980.3,1.60427183]
[1764121358207,0.2833,2980.8,2979.8,1.60427183]
[1764121358407,0.2833,2980.8,2980.0,0.00502529]
[1764121358913,0.2833,2980.8,2980.3,1.60427183]
[1764121360619,0.2833,2980.8,2980.0,0.00502529]
[1764121362918,0.2833,2981.4,2980.6,0.16782]
[1764121363216,0.28832529,2982.0,2981.2,1.60427183]
[1764121364320,0.28832529,2982.0,2980.9,1.60427183]
[1764121365609,0.28832529,2982.0,2980.0,0.00502529]
[1764121365610,0.2746,2981.3,2980.4,1.60427183]
[1764121366818,0.2746,2981.3,2980.2,1.60427183]
[1764121367523,0.2746,2981.3,2980.0,0.00502529]
[1764121373224,0.2746,2980.8,2980.2,0.16784]
[1764121373820,0.2746,2980.2,2980.0,1.60929712]
[1764121374024,0.27740739,2980.2,2980.0,1.60929712]
[1764121374215,0.00280739,2980.2,2980.0,1.60929712]
[1764121375527,0.00280739,2980.2,2980.0,1.77715712]
[1764121376025,0.27740739,2980.2,2980.0,0.00502529]
[1764121376422,0.00280739,2980.2,2980.0,1.60929712]
[1764121376621,0.00280739,2980.2,2980.1,1.20401288]
[1764121377728,7.39e-06,2980.2,2980.1,1.20401288]
[1764121378031,0.00502529,2980.4,2980.1,1.37186288]
[1764121378430,0.00502529,2980.4,2980.2,0.16785]
[1764121378629,0.2746,2981.3,2980.4,0.16783]
[1764121378826,0.27814924,2981.3,2981.1,1.20401288]
[1764121380328,0.2746,2980.8,2980.4,1.18700817]
[1764121380630,0.473,2980.6,2980.2,1.18700817]
[1764121380930,0.29,2980.2,2980.1,1.20401288]
[1764121384134,0.769,2980.2,2980.1,1.20401288]
[1764121384330,0.479,2980.1,2980.0,0.00502529]
[1764121384931,0.479,2980.1,2980.0,1.20903817]
[1764121385332,0.479,2980.1,2980.0,0.00502529]
[1764121386924,0.479,2980.1,2980.0,2.529e-05]
[1764121388638,0.479,2979.9,2979.8,1.445e-05]
[1764121388933,0.29,2980.2,2979.8,1.445e-05]
[1764121389235,0.479,2979.9,2979.8,1.445e-05]
[1764121389736,0.479,2979.9,2979.8,0.72046315]
[1764121390834,0.29,2980.2,2979.8,0.72046315]
[1764121391740,0.29,2980.2,2980.0,0.7204487]
[1764121391934,0.479,2980.1,2980.0,0.7204487]
[1764121393331,0.29,2980.2,2980.0,0.7204487]
[1764121393835,0.29,2980.2,2980.1,0.7204487]
[1764121394133,0.29,2980.2,2979.8,1.445e-05]
[1764121398631,2.167,2980.2,2979.8,1.445e-05]
[1764121399227,0.29,2980.2,2979.8,1.445e-05]
[1764121399428,0.29,2980.2,2980.1,1.20401288]
[1764121399634,0.7438,2980.2,2979.8,1.18702262]
[1764121399835,0.29,2980.2,2979.8,1.18702262]
[1764121400039,0.29,2980.5,2980.1,1.20401288]
[1764121401135,0.29,2980.5,2980.3,0.04625811]
[1764121401340,0.4538,2980.4,2980.3,0.04625811]
[1764121403041,0.29,2980.5,2980.3,0.04625811]
[1764121403242,0.29,2980.5,2980.4,0.04625811]
[1764121406639,0.7438,2980.5,2980.4,0.04625811]
[1764121406948,0.29,2980.5,2980.4,0.04625811]
[1764121407750,0.2746,2980.8,2980.4,1.8450965]
[1764121407947,0.2746,2980.8,2980.7,1.20401288]
[1764121408250,0.27814924,2981.3,2980.7,1.39571539]
[1764121408453,0.73194924,2981.3,2981.2,1.20401288]
[1764121408646,0.4538,2981.1,2981.0,1.18163728]
[1764121408951,0.2853,2981.0,2980.9,1.18163728]
[1764121409144,0.7391,2981.0,2980.9,1.18163728]
[1764121409450,0.2853,2981.0,2980.9,0.04625811]
[1764121410444,0.7391,2981.0,2980.9,0.09246752]
[1764121410748,0.2853,2981.0,2980.9,0.09246752]
[1764121411149,0.27814924,2981.3,2980.9,0.09246752]
[1764121411349,0.27814924,2981.3,2980.7,1.34851673]
[1764121411551,0.27814924,2981.3,2981.1,0.09246752]
[1764121412447,0.27814924,2981.3,2981.2,0.09246752]
[1764121413749,0.73194924,2981.3,2981.2,0.09246752]
[1764121415255,0.27814924,2981.3,2981.2,0.09246752]
[1764121415753,0.73194924,2981.3,2981.2,0.09246752]
[1764121416052,0.27814924,2981.3,2981.2,0.09246752]
[1764121416249,0.00502529,2981.5,2981.2,1.45648458]
[1764121416449,0.2853,2982.0,2981.3,0.26025752]
[1764121416651,0.2853,2981.5,2981.3,0.09246752]
[1764121417354,0.287715,2981.5,2981.3,0.09246752]
[1764121417552,0.002415,2981.5,2981.4,0.09246752]
[1764121418057,0.287715,2981.5,2981.4,0.09246752]
[1764121418654,0.287715,2981.5,2981.4,1.45648458]
[1764121418961,0.002415,2981.5,2981.4,1.62426458]
[1764121419357,0.287715,2981.5,2981.4,0.26024752]
[1764121420957,0.287715,2981.5,2981.4,0.30645693]
[1764121423059,0.287715,2981.5,2981.4,0.13867693]
[1764121423851,0.741515,2981.5,2981.4,0.13867693]
[1764121425956,0.002415,2981.5,2981.4,6.30645693]
[1764121426149,0.0050338,2981.7,2981.6,0.16777]
[1764121426860,0.0050338,2981.7,2981.6,0.30644693]
[1764121427162,0.00922385,2981.7,2981.6,0.30644693]
[1764121427658,0.48332385,2981.7,2981.6,0.30644693]
[1764121427852,0.00922385,2981.7,2981.6,0.30644693]
[1764121428249,0.00922385,2981.7,2981.6,1.48180069]
[1764121428453,0.2853,2982.5,2981.8,0.16776]
[1764121428650,0.2853,2982.5,2981.8,1.53177706]
[1764121428857,0.2853,2982.5,2982.1,0.13867693]
[1764121429457,0.28816651,2982.5,2982.1,0.14118651]
[1764121429854,0.28816651,2982.5,2982.3,0.13867693]
[1764121430654,0.4741,2982.4,2982.3,0.13867693]
[1764121431057,0.28921366,2982.2,2982.1,0.00250958]
[1764121431260,0.28816651,2982.5,2982.1,0.00250958]
[1764121432159,0.4741,2982.2,2982.1,0.00250958]
[1764121432364,0.28816651,2982.5,2982.1,0.00250958]
[1764121432555,0.4741,2982.2,2982.1,0.00250958]
[1764121434463,0.4741,2982.2,2982.1,9.58e-06]
[1764121434670,0.2861,2982.0,2981.6,1.17604491]
[1764121435061,0.4741,2981.7,2981.6,1.17604491]
[1764121435469,0.2861,2982.0,2981.5,0.0024]
[1764121435663,0.2861,2982.0,2981.5,0.00593191]
[1764121435866,0.4741,2981.6,2981.5,0.00353191]
[1764121436267,0.2861,2982.0,2981.5,0.00353191]
[1764121436974,0.4741,2981.6,2981.5,0.00353191]
[1764121441474,0.4741,2981.6,2981.5,0.04974132]
[1764121443071,0.4934,2981.3,2981.2,1.17604491]
[1764121443275,0.4934,2981.2,2981.1,1.18107871]
[1764121443476,0.2724,2981.5,2980.9,1.18179484]
[1764121443477,0.6877,2981.0,2980.9,1.18179484]
[1764121443784,0.6877,2981.0,2980.4,4.17614747]
[1764121443785,0.4934,2980.5,2980.4,3.57653467]
[1764121443977,0.4934,2980.5,2980.4,3.58039619]
[1764121444179,0.4934,2980.5,2980.4,1.7815578]
[1764121444383,0.1943,2981.0,2980.4,1.7815578]
[1764121444575,0.0050338,2980.7,2980.4,1.7815578]
[1764121445176,0.7658,2980.5,2980.4,0.00386152]
[1764121445384,0.4934,2980.5,2980.4,0.00386152]
[1764121445679,0.7658,2980.5,2980.4,0.00386152]
[1764121446484,0.4934,2979.7,2979.6,1.79883839]
[1764121446679,0.4934,2979.5,2979.4,3.16285545]
[1764121446880,0.4934,2979.5,2979.4,1.36401706]
[1764121447287,0.2724,2980.0,2979.4,1.36401706]
[1764121447288,0.2724,2980.0,2979.4,1.83991706]
[1764121447490,0.27488345,2980.0,2979.5,0.291]
[1764121448079,0.27488345,2980.0,2979.4,1.37216187]
[1764121448592,0.4934,2979.5,2979.4,1.37216187]
[1764121448887,0.27488345,2980.0,2979.5,0.291]
[1764121449189,0.00248345,2980.0,2979.5,0.291]
[1764121449379,0.27488345,2980.0,2979.4,1.37216187]
[1764121449585,0.4934,2979.5,2979.4,1.37216187]
[1764121450093,0.7658,2979.5,2979.4,0.00814481]
[1764121451595,0.7658,2979.5,2979.4,0.05435422]
[1764121452591,6.7658,2979.5,2978.3,1.79883839]
[1764121452791,0.7658,2979.5,2978.1,1.62832022]
[1764121452991,0.7658,2979.5,2978.6,1.36401706]
[1764121453286,0.4934,2979.5,2979.1,1.36401706]
[1764121453486,0.7848,2979.5,2979.1,1.36401706]
[1764121453698,0.7848,2979.5,2979.1,1.36639221]
[1764121454390,0.7848,2979.5,2978.1,0.26430316]
[1764121454391,0.45929,2979.5,2978.3,1.79883839]
[1764121454595,1.36401706,2978.7,2977.5,0.2881]
[1764121454900,1.36401706,2978.7,2977.0,0.2881]
[1764121455098,0.89110215,2979.0,2977.2,1.36401706]
[1764121455391,0.425,2979.3,2977.7,1.36401706]
[1764121455593,0.425,2979.3,2977.8,0.0050338]
[1764121456593,1.36401706,2979.0,2977.8,0.0050338]
[1764121458400,0.653,2978.9,2977.8,0.0050338]
[1764121462395,1.65541706,2979.5,2977.8,0.0050338]
[1764121462590,0.521,2979.4,2977.8,0.0050338]
[1764121462795,0.16787,2979.9,2977.8,0.0050338]
[1764121462991,2.727,2979.5,2977.8,0.0050338]
[1764121463897,1.36905086,2979.6,2977.8,0.0050338]
[1764121464103,0.821,2979.4,2977.8,0.0050338]
[1764121465001,1.36401706,2979.1,2977.8,0.0050338]
[1764121465397,0.16792,2979.0,2977.8,0.0050338]
[1764121465805,0.16792,2978.9,2977.8,0.0050338]
[1764121466999,0.16793,2978.8,2977.8,0.0050338]
[1764121467302,1.564,2978.7,2977.8,0.0050338]
[1764121467998,1.73193,2978.7,2977.8,0.0050338]
[1764121468903,0.16794,2978.5,2977.8,0.0050338]
[1764121470105,3.32,2978.4,2977.8,0.0050338]
[1764121471101,0.16794,2978.5,2977.8,0.0050338]
[1764121471291,3.55394,2978.5,2977.8,0.0050338]
[1764121471695,0.16794,2978.5,2977.8,0.0050338]
[1764121472002,0.16791,2979.2,2977.8,0.0050338]
[1764121472202,0.655,2979.1,2977.8,0.0050338]
[1764121472700,0.82291,2979.1,2977.8,0.0050338]
[1764121472998,0.16791,2979.1,2977.8,0.0050338]
[1764121473211,3.26491,2979.1,2977.8,0.0050338]
[1764121475300,1.33791,2979.1,2977.8,0.0050338]
[1764121475700,1.24291,2979.1,2977.8,0.0050338]
[1764121476395,1.20659909,2979.0,2977.8,0.0050338]
[1764121476596,1.191,2979.0,2977.8,0.0050338]
[1764121476795,2.07568676,2979.3,2978.0,0.2881]
[1764121476995,1.1839,2979.3,2978.0,0.2881]
[1764121477701,1.37451909,2978.9,2978.0,0.2881]
[1764121478401,0.16792,2978.9,2978.0,0.2881]
[1764121479194,0.89178676,2979.2,2978.0,0.2881]
[1764121479391,0.89178676,2979.1,2978.0,0.2881]
[1764121480399,0.89178676,2979.0,2978.0,0.2881]
[1764121480808,0.89178676,2978.9,2978.0,0.2881]
[1764121481303,0.89178676,2979.0,2978.0,0.2881]
[1764121481698,0.89178676,2978.9,2978.0,0.2881]
[1764121482100,0.89178676,2978.8,2978.0,0.2881]
[1764121483104,0.89178676,2978.7,2978.0,0.2881]
[1764121483305,0.89178676,2978.6,2978.0,0.2881]
[1764121483902,0.89178676,2978.6,2978.5,0.2687]
[1764121484210,1.19486954,2978.6,2978.5,0.2687]
[1764121484605,1.19486954,2978.7,2978.5,0.2687]
[1764121485013,0.90495647,2978.6,2978.5,0.2687]
[1764121486009,0.90495647,2978.7,2978.5,0.2687]
[1764121487806,0.90495647,2978.7,2978.0,0.2881]
[1764121488323,0.90495647,2978.4,2978.0,0.2881]
[1764121489620,0.90495647,2978.3,2978.0,0.2881]
[1764121490015,0.90495647,2978.4,2978.0,0.2881]
[1764121490421,0.90495647,2978.3,2978.0,0.2881]
[1764121492323,0.90495647,2978.4,2978.0,0.2881]
[1764121495314,0.90495647,2978.5,2978.0,0.2881]
[1764121497130,0.80424397,2978.4,2978.0,0.2881]
[1764121497716,0.90495647,2978.5,2978.0,0.2881]
[1764121499326,1.70973779,2978.7,2978.5,0.2687]
[1764121499720,0.90549382,2978.7,2978.5,0.2687]
[1764121499931,1.70973779,2978.7,2978.5,0.2687]
[1764121501034,1.70973779,2978.7,2978.0,0.2881]
[1764121501226,2.36972642,2979.4,2978.9,0.4659]
[1764121501431,9.8429775,2981.5,2980.0,0.75]
[1764121501432,0.03951997,2980.1,2980.0,0.75]
[1764121501734,0.4823,2980.4,2980.0,0.2841]
[1764121501927,0.4823,2980.4,2980.3,0.88980129]
[1764121502230,0.4823,2979.4,2979.3,1.18632448]
[1764121502428,0.4865464,2979.4,2979.3,1.18995604]
[1764121502633,0.4865464,2979.4,2979.3,0.00363156]
[1764121502832,0.4865464,2979.4,2979.3,0.80787553]
[1764121503031,0.4865464,2979.4,2979.3,0.85408494]
[1764121503834,0.0042464,2979.4,2979.3,1.31998494]
[1764121504228,2.26347032,2979.4,2979.3,0.04984097]
[1764121508134,2.26347032,2979.4,2979.1,0.0050338]
[1764121508135,0.4823,2979.2,2979.1,0.0050338]
[1764121508336,2.25922392,2979.2,2979.1,0.0050338]
[1764121508829,0.4823,2978.1,2978.0,1.18632448]
[1764121509139,0.4823,2978.0,2977.7,1.18632448]
[1764121509428,0.2683,2978.5,2977.9,0.4659]
[1764121509628,1.77692392,2978.4,2977.9,0.4659]
[1764121509838,1.78195772,2978.4,2977.9,0.4709338]
[1764121510038,0.4823,2978.0,2977.9,0.0050338]
[1764121510831,0.0050338,2978.4,2977.9,0.0050338]
[1764121511031,1.77692392,2978.2,2977.9,0.0050338]
[1764121511235,0.4823,2978.0,2977.9,0.0050338]
[1764121511529,1.77692392,2978.1,2977.9,0.4681338]
[1764121511735,1.77692392,2978.2,2977.9,0.4681338]
[1764121512126,1.77692392,2978.1,2977.9,0.4681338]
[1764121512325,1.77692392,2978.2,2977.9,0.4681338]
[1764121512736,1.77692392,2978.1,2977.9,0.4681338]
[1764121512937,1.77692392,2978.2,2977.9,0.4681338]
[1764121513337,2.24102392,2978.0,2977.9,0.0050338]
[1764121513539,0.4641,2978.0,2977.9,0.0050338]
[1764121513731,2.46902392,2978.0,2977.9,0.0050338]
[1764121514738,0.4641,2977.8,2977.2,1.18632448]
[1764121514940,0.4641,2977.2,2977.0,0.2841]
[1764121515242,0.228,2978.0,2976.7,2.39192549]
[1764121515243,0.4641,2977.1,2976.7,2.39192549]
[1764121515632,0.4641,2977.1,2976.6,1.18632448]
[1764121515836,0.00348477,2977.1,2977.0,0.7555]
[1764121516138,1.77692392,2977.1,2977.0,0.7555]
[1764121516340,0.4641,2976.9,2976.6,1.19262316]
[1764121516637,0.4641,2977.1,2976.7,1.18632448]
[1764121516835,0.4641,2977.1,2976.6,0.00629868]
[1764121517136,0.00251781,2977.1,2976.6,0.00629868]
[1764121517439,0.0050338,2978.4,2977.2,0.16802]
[1764121517736,0.0050338,2978.4,2977.5,0.2924]
[1764121518141,1.77692392,2978.3,2977.5,0.2924]
[1764121518438,0.4641,2978.0,2977.9,0.04626353]
[1764121518837,2.24102392,2978.0,2977.9,0.04626353]
[1764121520743,0.4641,2977.2,2977.1,1.18289205]
[1764121521040,1.77692392,2977.8,2977.1,0.4631]
[1764121521242,1.77692392,2977.4,2977.1,0.4631]
[1764121521543,1.77692392,2977.6,2977.1,0.4631]
[1764121521737,0.4641,2977.2,2976.7,1.18289205]
[1764121522336,0.2305,2978.0,2977.1,1.20560101]
[1764121522736,1.77692392,2977.9,2977.1,1.20560101]
[1764121523136,1.77692392,2977.8,2977.1,1.20560101]
[1764121523648,1.77692392,2977.7,2977.6,0.4631]
[1764121523945,1.77692392,2978.0,2977.6,0.4631]
[1764121524143,1.77692392,2977.7,2977.6,0.4631]
[1764121524540,0.00288028,2978.3,2977.6,1.66870101]
[1764121524840,0.00288028,2978.3,2978.2,0.4631]
[1764121525240,1.7798042,2978.3,2978.2,0.4631]
[1764121526547,1.7798042,2978.3,2978.0,1.49800101]
[1764121526548,2.2439042,2978.3,2978.0,0.2924]
[1764121526745,2.24102392,2978.1,2977.5,0.4604]
[1764121527151,1.77692392,2978.0,2977.5,0.4604]
[1764121527341,1.77692392,2978.1,2977.5,0.4604]
[1764121527737,1.77692392,2978.0,2977.8,0.04626353]
[1764121527937,1.77692392,2977.9,2977.8,0.04626353]
[1764121528350,1.77692392,2977.9,2977.8,0.50936353]
[1764121529142,1.77692392,2977.9,2977.8,0.04626353]
[1764121529143,2.24102392,2977.9,2977.8,0.04626353]
[1764121530049,2.24102392,2977.9,2977.1,2.38849306]
[1764121530247,1.77692392,2977.5,2977.1,1.20560101]
[1764121530652,1.77692392,2977.2,2977.0,0.2924]
[1764121530842,0.4641,2977.0,2976.7,2.38849306]
[1764121531049,0.4641,2977.0,2976.6,0.00629868]
[1764121531250,2.24102392,2976.7,2976.6,0.00629868]
[1764121531449,0.2305,2978.0,2977.1,0.4631]
[1764121531653,0.4641,2977.1,2976.8,1.20560101]
[1764121531852,0.4641,2977.1,2976.6,1.21189969]
[1764121532154,1.77692392,2977.0,2976.6,1.21189969]
[1764121532347,1.77692392,2977.4,2976.6,1.21189969]
[1764121532550,1.77692392,2977.1,2976.6,0.00629868]
[1764121533054,1.77692392,2976.8,2976.6,0.00629868]
[1764121533256,0.4641,2976.7,2976.6,0.00629868]
[1764121533448,1.77692392,2977.0,2976.6,0.00629868]
[1764121533643,1.77692392,2977.0,2976.7,0.4631]
[1764121533952,0.2683,2977.5,2976.7,0.4631]
[1764121534154,1.77692392,2976.9,2976.7,0.4631]
[1764121534549,1.77692392,2976.8,2976.7,0.4631]
[1764121534847,1.77692392,2976.9,2976.7,0.4631]
[1764121535049,1.77692392,2977.2,2977.1,0.4631]
[1764121535249,1.77692392,2977.5,2977.1,0.4631]
[1764121535449,1.77692392,2977.2,2977.1,0.4631]
[1764121536358,2.24102392,2977.2,2976.6,0.00629868]
[1764121536554,1.77692392,2977.1,2976.6,0.46939868]
[1764121536854,0.4641,2976.7,2976.6,0.00629868]
[1764121537049,2.24102392,2976.7,2976.6,0.00629868]
[1764121538052,2.24102392,2976.7,2976.6,0.05256221]
[1764121539256,0.4641,2976.2,2976.1,1.18289205]
[1764121539463,0.4641,2976.1,2975.9,1.18289205]
[1764121539655,0.4641,2975.8,2975.6,1.77948673]
[1764121539850,0.2683,2976.5,2975.6,1.64830421]
[1764121540050,1.77692392,2976.1,2975.6,0.4631]
[1764121540253,1.77692392,2975.9,2975.6,0.4661304]
[1764121540653,1.77692392,2975.8,2975.7,0.4631]
[1764121540858,1.77692392,2975.9,2975.7,0.4631]
[1764121541055,0.00800162,2976.1,2976.0,0.4631]
[1764121541259,1.78492554,2976.1,2976.0,0.7555]
[1764121542356,0.442,2977.4,2976.0,6.7555]
[1764121542557,0.4458,2976.5,2976.0,1.47760421]
[1764121542757,1.77692392,2976.3,2976.0,0.2924]
[1764121542956,0.4458,2976.0,2975.8,1.18520421]
[1764121543254,1.77692392,2976.2,2975.9,0.4817]
[1764121543456,0.00303818,2976.2,2975.9,0.4817]
[1764121543656,1.77692392,2976.0,2975.9,0.4817]
[1764121548167,2.22272392,2976.0,2975.9,0.4817]
[1764121548364,2.22272392,2976.0,2975.9,0.52796353]
[1764121553965,1.77692392,2976.0,2975.9,0.52796353]
[1764121555060,2.22272392,2976.0,2975.9,0.52796353]
[1764121555564,1.77692392,2976.0,2975.9,0.52796353]
[1764121556368,0.00303818,2976.2,2976.1,0.4817]
[1764121556667,0.00303819,2976.3,2976.2,0.4817]
[1764121557469,0.00602507,2976.3,2976.2,0.52796353]
[1764121558169,0.00602507,2976.3,2976.2,1.71316774]
[1764121558661,2.03240162,2978.0,2976.2,7.75943127]
[1764121558662,1.20085175,2977.8,2976.2,7.75943127]
[1764121558964,0.2305,2978.0,2977.0,0.2708]
[1764121559162,0.4458,2977.1,2976.9,1.36811569]
[1764121559366,0.4458,2977.1,2976.6,1.18394493]
[1764121559667,0.4458,2976.9,2976.8,0.09252706]
[1764121565365,0.6305,2976.5,2976.4,0.88951759]
[1764121565667,0.6305,2976.5,2976.4,1.37871759]
[1764121565668,0.4535,2976.5,2976.4,1.37871759]
[1764121566162,0.4535,2976.5,2976.4,0.88951759]
[1764121566470,0.4535,2976.3,2976.2,0.88951759]
[1764121567061,0.177,2976.5,2975.9,1.18394493]
[1764121567261,0.90437067,2976.0,2975.0,0.2708]
[1764121567473,0.90540634,2975.7,2975.0,0.2708]
[1764121567664,0.90540634,2975.7,2974.5,2.05738673]
[1764121567974,0.90540634,2975.3,2974.5,0.2779]
[1764121568264,0.0050338,2975.2,2974.6,0.0050338]
[1764121569374,0.0050338,2975.2,2975.0,0.2779]
[1764121570683,0.0050338,2975.2,2974.6,0.0050338]
[1764121572172,0.0050338,2975.2,2975.0,0.2691]
[1764121572762,0.0050338,2975.2,2974.6,0.0050338]
[1764121573972,0.1731638,2975.2,2974.6,0.0050338]
[1764121575574,0.16815,2974.9,2974.5,0.28095406]
[1764121575772,0.17231839,2974.9,2974.5,0.28095406]
[1764121576774,0.16815,2974.8,2974.5,0.28095406]
[1764121578176,0.16815,2974.8,2974.5,0.27215406]
[1764121578382,0.00416839,2974.9,2974.5,0.00305406]
[1764121578383,0.16816,2974.7,2974.5,0.00305406]
[1764121578577,0.16816,2974.7,2974.5,0.27215406]
[1764121581972,0.00416839,2974.9,2974.8,0.4826]
[1764121582173,0.00416839,2974.9,2974.5,0.27215406]
[1764121582568,0.17231839,2974.9,2974.5,0.27215406]
[1764121583683,0.16815,2974.8,2974.5,0.27215406]
[1764121583981,0.00416839,2974.9,2974.5,0.00305406]
[1764121584577,0.00416839,2974.9,2973.5,0.2779]
[1764121585283,0.16819,2974.1,2973.0,0.2691]
[1764121585782,0.16819,2974.1,2973.0,0.27202824]